bitfinex-derivatives/quotes_SOLF0:USTF0_20251222
["timestamp","ask_amount","ask_price","bid_price","bid_amount"]
[1766378527692,3.46,126.31,126.27,0.05741021]
[1766378528302,3.46,126.3,126.22,10.3529]
[1766378528599,3.46,126.3,126.23,3.22]
[1766378528798,10.5862,126.35,126.28,3.22]
[1766378529309,0.05977384,126.33,126.3,0.05880744]
[1766378532204,46.78,126.36,126.3,3.27880744]
[1766378533298,0.05883776,126.34,126.3,3.27880744]
[1766378533800,3.46,126.37,126.3,3.27880744]
[1766378534805,0.05764863,126.35,126.3,3.27880744]
[1766378536110,7.1238,126.39,126.31,3.22]
[1766378536111,5.78019365,126.39,126.31,3.22]
[1766378537102,0.05267892,126.36,126.34,0.05727746]
[1766378541304,3.51267892,126.36,126.31,3.22]
[1766378541506,3.51267892,126.36,126.28,3.22]
[1766378541704,3.46,126.36,126.28,3.22]
[1766378542309,0.05173573,126.33,126.31,0.05525718]
[1766378545414,0.00173573,126.33,126.31,0.05525718]
[1766378546614,0.00173573,126.33,126.31,7.18285718]
[1766378547314,0.00173573,126.33,126.29,7.1288]
[1766378548516,0.00173573,126.33,126.3,0.06011112]
[1766378549316,0.00173573,126.33,126.3,7.18851112]
[1766378550107,0.00173573,126.33,126.3,0.06011112]
[1766378551016,0.00173573,126.33,126.3,3.55011112]
[1766378552614,0.00173573,126.33,126.31,7.128]
[1766378553520,3.43,126.39,126.31,10.618]
[1766378553725,3.43,126.39,126.32,3.49]
[1766378554518,3.43,126.39,126.33,7.1268]
[1766378554715,0.05120592,126.37,126.34,0.0538537]
[1766378555215,0.05120592,126.37,126.35,7.1257]
[1766378556015,46.78,126.4,126.35,7.1257]
[1766378557111,0.059659,126.39,126.35,7.1257]
[1766378559625,0.059659,126.39,126.35,10.4557]
[1766378568242,0.059659,126.39,126.36,7.125]
[1766378571141,0.059659,126.39,126.36,10.455]
[1766378574248,0.059659,126.39,126.37,7.1244]
[1766378574545,0.059659,126.39,126.37,7.18096986]
[1766378576048,4.87185615,126.43,126.37,7.18096986]
[1766378576439,3.39,126.42,126.37,7.18096986]
[1766378576953,0.05239573,126.41,126.37,7.18096986]
[1766378579555,0.05239573,126.41,126.37,0.05656986]
[1766378579857,3.44239573,126.41,126.37,0.05656986]
[1766378585653,3.44239573,126.41,126.34,10.4161]
[1766378585960,3.39,126.41,126.35,4.77185615]
[1766378586146,3.39,126.41,126.35,3.29]
[1766378586346,3.39,126.41,126.35,4.77185615]
[1766378586764,0.05057371,126.39,126.37,0.06009666]
[1766378589458,3.31,126.44,126.37,4.83195281]
[1766378589661,3.31,126.44,126.37,4.77185615]
[1766378590259,3.31,126.44,126.37,3.29]
[1766378590459,0.05740649,126.42,126.39,0.05209745]
[1766378591166,3.36740649,126.42,126.39,0.05209745]
[1766378591564,53.8806,126.45,126.39,4.8239536]
[1766378591565,46.76,126.45,126.39,4.8239536]
[1766378591761,3.31,126.46,126.4,3.29]
[1766378591966,3.31,126.46,126.41,4.77185615]
[1766378592858,0.05649032,126.45,126.42,0.05690554]
[1766378596065,3.31,126.44,126.38,3.29]
[1766378596656,3.31,126.43,126.38,3.29]
[1766378596874,4.79185615,126.43,126.36,10.4152]
[1766378597166,0.05494017,126.41,126.38,0.0555035]
[1766378599479,4.84679632,126.41,126.34,3.29]
[1766378599665,3.31,126.4,126.34,3.29]
[1766378600673,0.05623779,126.38,126.36,0.05657458]
[1766378600883,3.36623779,126.38,126.28,10.65024354]
[1766378601066,110.8171,126.39,126.26,120.78803883]
[1766378601067,1.48185615,126.35,126.29,3.29]
[1766378601964,0.05117575,126.33,126.31,0.05986118]
[1766378602374,0.00117575,126.33,126.31,0.05986118]
[1766378606981,0.00117575,126.33,126.31,3.34986118]
[1766378607183,11.91635615,126.38,126.31,3.34986118]
[1766378608084,0.05439698,126.36,126.31,3.34986118]
[1766378615783,0.00439698,126.36,126.31,3.34986118]
[1766378616587,0.00439698,126.36,126.31,10.47786118]
[1766378616886,0.00439698,126.36,126.32,3.41]
[1766378626291,3.48,126.44,126.33,2.31636724]
[1766378626592,3.48,126.41,126.31,49.07636724]
[1766378627392,0.05799381,126.37,126.35,0.05608155]
[1766378630298,0.05799381,126.37,126.32,7.1274]
[1766378631193,0.05799381,126.37,126.33,0.06013178]
[1766378645800,7.1238,126.39,126.33,0.06013178]
[1766378646604,10.3638,126.39,126.33,0.06013178]
[1766378646808,0.05803345,126.37,126.33,0.06013178]
[1766378647810,10.3628,126.41,126.33,0.06013178]
[1766378648007,10.3628,126.41,126.31,56.43661078]
[1766378648202,3.24,126.4,126.31,56.43661078]
[1766378648897,3.24,126.4,126.34,0.05859926]
[1766378648898,0.0560572,126.37,126.34,0.05859926]
[1766378659811,3.2960572,126.37,126.34,0.05859926]
[1766378660207,3.2960572,126.37,126.3,54.12024354]
[1766378660698,3.2960572,126.37,126.3,46.76]
[1766378661305,3.2960572,126.37,126.32,0.05309338]
[1766378661611,10.3654,126.36,126.32,0.05309338]
[1766378662413,3.24,126.36,126.32,0.05309338]
[1766378680638,3.24,126.36,126.32,0.00309338]
[1766378682743,3.24,126.36,126.32,7.13049338]
[1766378683840,3.24,126.36,126.32,0.00309338]
[1766378705261,5.00308948,126.35,126.29,7.36918584]
[1766378705852,3.52,126.35,126.29,7.36918584]
[1766378706153,0.06049504,126.33,126.31,0.05093939]
[1766378706962,0.00049504,126.33,126.31,0.05093939]
[1766378710165,4.89308948,126.37,126.31,7.17893939]
[1766378710367,3.41,126.36,126.31,7.17893939]
[1766378711267,0.05257793,126.35,126.31,7.17893939]
[1766378733481,4.98566741,126.35,126.31,0.05093939]
[1766378735275,3.45,126.34,126.29,7.129]
[1766378736296,3.45,126.34,126.3,0.05553767]
[1766378736900,4.99308948,126.33,126.3,0.05553767]
[1766378737087,3.51,126.32,126.27,7.13]
[1766378738098,1.48308948,126.33,126.27,7.13]
[1766378738099,3.56842792,126.31,126.28,0.05956055]
[1766378740807,0.05842792,126.31,126.28,0.05956055]
[1766378743603,0.05842792,126.31,126.28,7.18936055]
[1766378749808,0.05842792,126.31,126.28,0.05956055]
[1766378755712,3.51,126.34,126.28,0.05956055]
[1766378756411,50.29,126.36,126.28,0.05956055]
[1766378756603,50.29,126.36,126.31,0.05560684]
[1766378756604,0.05079758,126.33,126.31,0.05560684]
[1766378768014,3.35079758,126.33,126.26,10.0]
[1766378768218,3.35079758,126.33,126.28,7.1298]
[1766378769019,3.35079758,126.33,126.29,0.05492465]
[1766378773122,0.05079758,126.33,126.29,7.18412465]
[1766378773311,3.35079758,126.33,126.29,7.18412465]
[1766378776319,3.35079758,126.33,126.29,0.05492465]
[1766378780130,3.35079758,126.33,126.26,7.1305]
[1766378780131,3.3,126.32,126.26,7.1305]
[1766378781125,0.05940868,126.3,126.28,0.0584718]
[1766378785630,3.35940868,126.3,126.26,7.1305]
[1766378786130,0.05940868,126.3,126.26,7.1305]
[1766378786535,0.05940868,126.3,126.27,0.05716454]
[1766378787725,3.3,126.34,126.27,0.05716454]
[1766378787932,3.3,126.34,126.25,118.2922451]
[1766378788831,0.05705086,126.31,126.28,7.18315416]
[1766378789034,3.35705086,126.31,126.28,0.05345416]
[1766378789235,3.35705086,126.31,126.28,0.00345416]
[1766378790229,3.35705086,126.31,126.24,7.3600451]
[1766378790739,3.35705086,126.31,126.23,7.3600451]
[1766378790922,3.3,126.31,126.23,7.3600451]
[1766378791326,0.05316463,126.28,126.26,0.05865732]
[1766378794839,3.41316463,126.28,126.22,7.3600451]
[1766378795044,3.41316463,126.28,126.2,7.3600451]
[1766378795045,3.36,126.27,126.2,7.3600451]
[1766378795245,3.36,126.27,126.19,7.3600451]
[1766378795441,2.31825252,126.26,126.2,7.1342]
[1766378795645,3.34,126.25,126.2,7.1342]
[1766378795838,0.05294701,126.24,126.21,0.05456883]
[1766378796752,0.05294701,126.24,126.21,7.18816883]
[1766378797150,3.34,126.29,126.21,111.02186883]
[1766378797354,3.34,126.29,126.21,110.9673]
[1766378797852,3.34,126.29,126.23,7.1326]
[1766378798043,0.05834533,126.27,126.25,0.05765665]
[1766378798854,3.34,126.31,126.25,0.05765665]
[1766378799555,3.34,126.31,126.25,7.18905665]
[1766378799756,0.05086814,126.29,126.25,7.18905665]
[1766378810355,0.05086814,126.29,126.26,7.1307]
[1766378810663,0.00086814,126.29,126.26,7.1307]
[1766378814064,0.00086814,126.29,126.27,7.1301]
[1766378814670,50.12,126.33,126.25,0.05765665]
[1766378814671,1.48437939,126.33,126.26,110.9265]
[1766378814856,1.48437939,126.33,126.27,110.9163]
[1766378815764,0.00036151,126.31,126.29,0.05236276]
[1766378820359,46.78,126.37,126.29,0.05236276]
[1766378820566,1.48437939,126.35,126.28,110.9071]
[1766378820762,1.48437939,126.35,126.31,7.128]
[1766378820966,3.34,126.36,126.31,7.128]
[1766378821371,1.54502386,126.35,126.32,0.05829789]
[1766378827274,1.54502386,126.35,126.28,53.9093]
[1766378827275,4.79502386,126.35,126.28,53.9093]
[1766378827772,1.48437939,126.33,126.29,7.1292]
[1766378828374,0.06039292,126.32,126.3,0.05475718]
[1766378836777,3.31039292,126.32,126.3,0.00475718]
[1766378836978,3.31039292,126.32,126.25,167.7121]
[1766378836979,1.48437939,126.31,126.25,167.7121]
[1766378837177,1.48437939,126.31,126.25,46.78]
[1766378837877,0.05918114,126.29,126.27,0.06045036]
[1766378838686,0.05918114,126.29,126.27,7.19075036]
[1766378838889,0.05918114,126.29,126.27,0.06045036]
[1766378848691,1.54356053,126.29,126.24,7.1317]
[1766378849797,1.54356053,126.29,126.25,0.05901155]
[1766378854799,1.54356053,126.29,126.25,7.19041155]
[1766378855003,0.05918114,126.29,126.25,7.19041155]
[1766378859207,0.05918114,126.29,126.25,0.05901155]
[1766378860404,3.4,126.28,126.25,0.05901155]
[1766378860608,3.4,126.28,126.22,46.78]
[1766378861701,0.06042358,126.26,126.24,0.05267293]
[1766378862604,0.00042358,126.26,126.24,0.05267293]
[1766378873318,0.00042358,126.26,126.24,7.18467293]
[1766378873520,50.18,126.31,126.24,0.05267293]
[1766378874426,0.05899816,126.29,126.24,0.05267293]
[1766378874628,0.05899816,126.29,126.25,7.1314]
[1766378881536,3.45899816,126.29,126.25,7.1314]
[1766378881743,3.45899816,126.29,126.24,0.05267293]
[1766378882535,3.45899816,126.29,126.24,7.18467293]
[1766378883238,7.39585149,126.37,126.24,0.05267293]
[1766378883449,3.4,126.38,126.24,0.05267293]
[1766378883450,3.4,126.38,126.3,110.8896]
[1766378883639,3.4,126.38,126.3,157.1496]
[1766378883833,3.4,126.38,126.32,7.1273]
[1766378884148,3.4,126.35,126.34,0.00083346]
[1766378884338,3.4,126.35,126.28,7.1297]
[1766378885245,0.05205862,126.33,126.3,0.06010268]
[1766378886636,0.00205862,126.33,126.3,110.95140268]
[1766378887146,0.00205862,126.33,126.3,0.06010268]
[1766378888639,0.00205862,126.33,126.31,7.1278]
[1766378889946,3.44,126.37,126.31,7.1278]
[1766378890740,3.44,126.37,126.31,53.9078]
[1766378890946,0.05867728,126.35,126.33,0.05901303]
[1766378891843,3.44,126.39,126.33,0.05901303]
[1766378892750,0.0582086,126.37,126.33,0.05901303]
[1766378897354,0.0582086,126.37,126.33,7.18551303]
[1766378899956,0.0582086,126.37,126.34,7.1263]
[1766378900958,0.0582086,126.37,126.33,0.05901303]
[1766378902253,3.4982086,126.37,126.33,0.05901303]
[1766378906053,0.0582086,126.37,126.33,0.05901303]
[1766378907657,0.0582086,126.37,126.33,7.18591303]
[1766378908358,2.31953535,126.41,126.33,0.05901303]
[1766378908663,3.44,126.42,126.33,110.8608]
[1766378909063,3.44,126.41,126.35,7.1257]
[1766378909460,0.05929796,126.39,126.37,0.05963799]
[1766378910668,3.49929796,126.39,126.33,7.1265]
[1766378911561,3.49929796,126.39,126.35,0.04984429]
[1766378915670,3.19,126.38,126.35,0.04984429]
[1766378916473,3.19,126.38,126.31,7.1277]
[1766378916666,3.19,126.37,126.31,7.1277]
[1766378917067,3.19,126.37,126.3,46.76]
[1766378917278,3.19,126.36,126.29,7.1287]
[1766378917571,9.44453535,126.37,126.27,56.76]
[1766378917572,3.19,126.34,126.27,46.76]
[1766378917780,3.24040796,126.33,126.31,0.00053442]
[1766378918070,3.24040796,126.33,126.27,46.76]
[1766378918573,3.24040796,126.33,126.27,53.89]
[1766378918976,3.24040796,126.33,126.29,0.06038239]
[1766378923367,5.55994331,126.33,126.29,0.00038239]
[1766378923568,3.19,126.32,126.29,0.00038239]
[1766378927984,4.6740803,126.32,126.29,0.00038239]
[1766378928175,3.19,126.31,126.29,0.00038239]
[1766378929988,1.53448826,126.33,126.29,0.00038239]
[1766378929989,4.72448826,126.33,126.29,0.00038239]
[1766378930288,3.19,126.32,126.29,0.00038239]
[1766378931883,0.05040796,126.33,126.29,0.00038239]
[1766378932084,3.24040796,126.33,126.29,0.00038239]
[1766378932279,4.72448826,126.33,126.29,0.00038239]
[1766378932589,3.19,126.32,126.29,0.00038239]
[1766378937993,4.72448826,126.33,126.29,0.00038239]
[1766378939091,3.19,126.32,126.29,0.00038239]
[1766378946900,1.53448826,126.33,126.29,0.00038239]
[1766378947109,4.81448826,126.33,126.29,0.00038239]
[1766378947409,3.33040796,126.33,126.29,0.00038239]
[1766378950208,4.81448826,126.33,126.29,0.00038239]
[1766378950413,3.33040796,126.33,126.29,7.12948239]
[1766378950812,0.05040796,126.33,126.29,0.00038239]
[1766378951408,0.05040796,126.33,126.31,7.128]
[1766378952110,0.05040796,126.33,126.29,7.12918239]
[1766378952610,0.05040796,126.33,126.29,0.00038239]
[1766378954717,0.05040796,126.33,126.29,7.12948239]
[1766378955917,4.81448826,126.33,126.29,0.00038239]
[1766378957018,3.33040796,126.33,126.29,0.00038239]
[1766378958518,0.05040796,126.33,126.29,0.00038239]
[1766378959414,0.00040796,126.33,126.29,0.00038239]
[1766378959812,0.00040796,126.33,126.31,7.1281]
[1766378961413,3.28,126.37,126.32,7.1275]
[1766378961817,1.4840803,126.38,126.32,7.1275]
[1766378962512,0.05602817,126.36,126.34,0.05227208]
[1766378963222,1.4840803,126.4,126.34,0.05227208]
[1766378963523,4.7640803,126.4,126.34,0.05227208]
[1766378964322,0.0527515,126.38,126.34,0.05227208]
[1766378966817,0.0527515,126.38,126.35,7.1257]
[1766378967410,0.0527515,126.38,126.34,0.05227208]
[1766378968721,0.0527515,126.38,126.34,7.17867208]
[1766378968917,0.0527515,126.38,126.34,0.05227208]
[1766378970625,0.0527515,126.38,126.35,7.1258]
[1766378970822,3.5227515,126.38,126.34,0.05227208]
[1766378973630,3.5227515,126.38,126.34,7.17857208]
[1766378973929,0.0527515,126.38,126.34,7.17857208]
[1766378974222,0.0527515,126.38,126.35,7.1258]
[1766378975532,0.0527515,126.38,126.34,0.05227208]
[1766378977735,0.0527515,126.38,126.34,53.93867208]
[1766378977932,0.0527515,126.38,126.34,46.81227208]
[1766378978236,0.0527515,126.38,126.36,7.1251]
[1766378979832,3.2,126.41,126.36,7.1251]
[1766378980632,3.2,126.41,126.37,7.1246]
[1766378980824,0.05733006,126.4,126.38,0.0549296]
[1766378981423,0.05733006,126.4,126.38,0.0049296]
[1766378981424,3.25733006,126.4,126.38,0.0049296]
[1766378985341,110.7555,126.46,126.38,0.0049296]
[1766378985342,4.6840803,126.6,126.5,110.7152]
[1766378985636,3.2,126.59,126.57,1.4840803]
[1766378985839,7.1099,126.64,126.57,1.4840803]
[1766378986139,114.1443983,126.72,126.63,1.4840803]
[1766378986325,110.5597,126.68,126.59,46.74]
[1766378986527,110.5597,126.68,126.6,1.4840803]
[1766378986823,112.0377803,126.69,126.6,1.4840803]
[1766378987232,112.0288803,126.7,126.57,157.3946]
[1766378987436,0.05760813,126.65,126.62,0.05918657]
[1766378987641,0.05760813,126.65,126.62,0.05372438]
[1766378987835,3.25760813,126.65,126.62,0.05372438]
[1766378988030,3.25760813,126.65,126.62,0.00372438]
[1766378988231,110.5448,126.7,126.62,0.00372438]
[1766378988535,117.6511,126.7,126.58,110.6436]
[1766378989034,117.6511,126.7,126.58,7.1126]
[1766378989235,0.04987166,126.65,126.54,117.09735844]
[1766378989435,110.571,126.67,126.55,46.72]
[1766378989634,110.571,126.67,126.54,117.09735844]
[1766378989635,110.5787,126.66,126.54,60.25795844]
[1766378989834,110.5787,126.66,126.54,53.8351]
[1766378990040,117.6875,126.66,126.54,53.8351]
[1766378990239,3.2,126.65,126.54,53.8351]
[1766378990544,3.2,126.65,126.59,0.00275772]
[1766378990742,3.2,126.7,126.59,0.00275772]
[1766378990946,3.2,126.7,126.59,46.72]
[1766378991147,3.2,126.7,126.59,157.3539]
[1766378991741,0.06042209,126.66,126.63,0.0551843]
[1766378992052,0.06042209,126.66,126.63,0.0598743]
[1766378994238,3.26042209,126.66,126.6,46.7]
[1766378995355,3.26042209,126.66,126.62,0.0588344]
[1766378995754,3.02345059,126.66,126.62,0.0588344]
[1766378996757,0.05419212,126.65,126.62,0.0588344]
[1766378998659,1.93835857,126.66,126.62,0.0588344]
[1766378999762,0.05311525,126.65,126.62,0.0588344]
[1766379003256,3.25311525,126.65,126.58,46.68]
[1766379003453,3.2,126.65,126.58,46.68]
[1766379003656,110.5565,126.69,126.58,46.68]
[1766379003657,3.2,126.69,126.58,157.3261]
[1766379004361,0.06059528,126.65,126.62,0.05019194]
[1766379004556,0.05265143,126.65,126.62,0.05682885]
[1766379012467,0.05265143,126.65,126.6,9.41723191]
[1766379012468,3.31265143,126.65,126.6,9.41723191]
[1766379013457,3.26,126.68,126.61,7.16217764]
[1766379014671,3.26,126.65,126.61,0.05117764]
[1766379014875,3.26,126.65,126.59,7.112]
[1766379015880,0.05592307,126.63,126.61,0.05734955]
[1766379017265,0.05592307,126.63,126.53,2.30583191]
[1766379017266,3.26,126.62,126.53,2.30583191]
[1766379018072,3.26,126.61,126.53,2.30583191]
[1766379018385,0.05645511,126.59,126.56,0.0538388]
[1766379018572,3.31645511,126.59,126.56,0.05977226]
[1766379021977,0.05645511,126.59,126.56,0.05977226]
[1766379024068,3.31645511,126.59,126.52,7.116]
[1766379024377,3.26,126.59,126.52,7.116]
[1766379025083,3.31900708,126.57,126.54,0.05310516]
[1766379026274,0.05900708,126.57,126.54,0.05310516]
[1766379027977,0.05900708,126.57,126.54,7.16810516]
[1766379028883,3.38,126.61,126.54,0.05310516]
[1766379029575,3.38,126.61,126.54,7.16780516]
[1766379029975,0.05523464,126.59,126.54,0.05310516]
[1766379031783,0.05523464,126.59,126.55,7.1144]
[1766379032588,0.05523464,126.59,126.54,0.05310516]
[1766379033476,0.05523464,126.59,126.54,7.16810516]
[1766379036988,3.23523464,126.59,126.54,0.05310516]
[1766379040697,0.05523464,126.59,126.54,7.16800516]
[1766379041893,3.18,126.65,126.57,7.1134]
[1766379042196,3.18,126.65,126.56,157.3385]
[1766379042384,3.18,126.65,126.58,110.6461]
[1766379042792,3.18,126.65,126.61,7.1111]
[1766379042992,0.05807784,126.63,126.61,7.1111]
[1766379044988,0.05807784,126.63,126.6,0.06064681]
[1766379046792,0.05807784,126.63,126.6,7.17234681]
[1766379049507,0.05807784,126.63,126.6,0.06064681]
[1766379049892,4.7150375,126.63,126.6,0.00064681]
[1766379050093,3.18,126.62,126.6,0.00064681]
[1766379050293,0.05807784,126.63,126.6,0.00064681]
[1766379060601,0.05807784,126.63,126.6,7.11234681]
[1766379066409,4.7550375,126.63,126.6,0.00064681]
[1766379066609,3.22,126.62,126.55,167.3292]
[1766379067516,0.05900793,126.6,126.57,0.06002238]
[1766379067718,0.05900793,126.6,126.57,7.17342238]
[1766379068909,7.1091,126.65,126.57,0.06002238]
[1766379068910,3.22,126.65,126.57,0.06002238]
[1766379069114,3.22,126.64,126.56,120.6597]
[1766379069316,3.22,126.64,126.57,110.6529]
[1766379069912,3.22,126.64,126.59,0.06034666]
[1766379070118,0.05509117,126.62,126.59,0.06034666]
[1766379070627,0.05509117,126.62,126.59,7.17264666]
[1766379072127,0.05509117,126.62,126.6,7.1117]
[1766379073522,3.22,126.64,126.6,7.1117]
[1766379074629,0.05239694,126.63,126.6,7.1117]
[1766379079027,157.2068,126.7,126.6,7.1117]
[1766379079028,3.22,126.68,126.6,110.628]
[1766379079227,3.22,126.68,126.61,110.6188]
[1766379079426,3.22,126.7,126.62,157.2686]
[1766379079825,3.22,126.7,126.61,117.73102961]
[1766379079826,3.22,126.7,126.61,7.11222961]
[1766379080132,0.06034216,126.67,126.64,0.05831137]
[1766379080728,0.06034216,126.67,126.64,46.71831137]
[1766379081240,3.22,126.71,126.64,46.71831137]
[1766379081440,3.22,126.71,126.66,7.1083]
[1766379082137,0.05474191,126.7,126.67,0.05873417]
[1766379083039,3.27474191,126.7,126.66,46.66]
[1766379083935,3.27474191,126.7,126.67,0.05839968]
[1766379091748,0.05474191,126.7,126.67,0.05839968]
[1766379092541,0.05474191,126.7,126.67,7.16619968]
[1766379093346,0.05474191,126.7,126.67,53.80619968]
[1766379093950,6.9976983,126.72,126.68,7.1072]
[1766379094144,6.9976983,126.72,126.67,46.69839968]
[1766379094838,0.04989379,126.71,126.67,46.69839968]
[1766379095549,0.04989379,126.71,126.67,53.80609968]
[1766379096453,0.04989379,126.71,126.68,7.1068]
[1766379097161,0.04989379,126.71,126.67,46.69839968]
[1766379097162,3.52989379,126.71,126.67,0.05839968]
[1766379097450,4.95695966,126.68,126.62,53.7502]
[1766379097651,4.95695966,126.68,126.62,46.64]
[1766379097950,4.95695966,126.71,126.63,110.5993]
[1766379098245,0.00452281,126.68,126.66,0.05806277]
[1766379101146,3.48,126.71,126.66,7.16636277]
[1766379101755,3.6176983,126.72,126.67,7.1077]
[1766379101944,0.05309826,126.71,126.67,7.1077]
[1766379110156,9.656e-05,126.72,126.66,0.05806277]
[1766379110355,3.48,126.75,126.66,110.62996277]
[1766379110555,3.48,126.75,126.66,110.5719]
[1766379110755,3.48,126.75,126.67,7.1074]
[1766379111150,1.47695966,126.74,126.66,110.5719]
[1766379111351,4.95695966,126.74,126.66,110.5719]
[1766379111550,0.05423666,126.71,126.69,0.05244593]
[1766379116166,0.05423666,126.71,126.69,7.15914593]
[1766379120570,3.48,126.7,126.62,2.76]
[1766379120765,3.48,126.7,126.62,49.38]
[1766379120961,3.48,126.7,126.63,3.39]
[1766379121474,3.48,126.67,126.65,0.05240282]
[1766379121771,3.48,126.67,126.61,3.39]
[1766379122074,3.48,126.67,126.57,9.89325558]
[1766379122075,3.48,126.67,126.59,3.39]
[1766379122271,3.48,126.66,126.59,10.5022]
[1766379122972,0.06062341,126.64,126.61,0.05769033]
[1766379124269,0.06062341,126.64,126.61,3.44769033]
[1766379124470,3.48,126.68,126.61,3.44769033]
[1766379125072,3.48,126.7,126.62,3.39]
[1766379125267,3.48,126.7,126.63,3.39]
[1766379125466,0.05097308,126.68,126.65,0.05933244]
[1766379129084,3.32,126.72,126.65,10.44803244]
[1766379129282,3.32,126.72,126.65,10.3887]
[1766379129887,3.32,126.72,126.64,3.28]
[1766379129888,3.32,126.71,126.64,3.28]
[1766379130090,3.37845472,126.7,126.67,0.05078197]
[1766379131199,3.37845472,126.7,126.67,0.00078197]
[1766379131893,0.05845472,126.7,126.67,0.00078197]
[1766379135600,3.37845472,126.7,126.67,0.00078197]
[1766379137693,3.37845472,126.7,126.63,3.28]
[1766379137694,3.32,126.69,126.63,3.28]
[1766379138003,3.32,126.69,126.61,7.1108]
[1766379138004,3.32,126.68,126.61,10.3908]
[1766379138591,3.3714579,126.66,126.59,7.1122]
[1766379139089,3.3714579,126.66,126.59,10.3922]
[1766379139687,3.3714579,126.66,126.61,0.05366795]
[1766379152619,0.0514579,126.66,126.61,3.33366795]
[1766379153603,0.0514579,126.66,126.63,7.11]
[1766379154206,3.29,126.7,126.64,10.5894]
[1766379154413,3.29,126.7,126.65,3.48]
[1766379155212,0.05660899,126.69,126.66,0.05206725]
[1766379160715,2.30381373,126.77,126.68,3.43]
[1766379161101,2.30381373,126.77,126.65,110.5826]
[1766379161102,7.1021,126.78,126.69,3.43]
[1766379161311,9.40591373,126.78,126.69,3.43]
[1766379161608,0.05652955,126.75,126.72,0.0525298]
[1766379163614,3.10652955,126.75,126.72,0.0025298]
[1766379167918,0.05652955,126.75,126.72,0.0025298]
[1766379168215,3.0,126.79,126.72,3.4325298]
[1766379169009,3.0,126.79,126.72,0.0025298]
[1766379169212,3.11505475,126.77,126.72,0.0025298]
[1766379169412,3.11505475,126.77,126.73,0.00296164]
[1766379169615,3.01,126.75,126.67,10.5376]
[1766379170020,3.01,126.75,126.68,3.43]
[1766379170223,3.01,126.77,126.69,3.43]
[1766379170622,0.05036731,126.74,126.72,0.05735883]
[1766379174719,0.05036731,126.74,126.69,10.5366]
[1766379175718,0.05036731,126.74,126.7,0.0548231]
[1766379178925,4.95406532,126.74,126.7,0.0548231]
[1766379179120,3.43,126.73,126.7,0.0548231]
[1766379184732,1.52406532,126.74,126.7,0.0548231]
[1766379185838,5.65406532,126.74,126.7,0.0548231]
[1766379189820,1.52406532,126.74,126.7,0.0548231]
[1766379190033,0.05036731,126.74,126.7,0.0548231]
[1766379191520,0.05036731,126.74,126.7,3.9848231]
[1766379192634,0.05036731,126.74,126.7,11.0909231]
[1766379194935,0.05036731,126.74,126.71,3.93]
[1766379196629,5.65406532,126.74,126.7,0.0548231]
[1766379196830,4.13,126.73,126.7,0.0548231]
[1766379197528,1.52406532,126.74,126.7,0.0548231]
[1766379198328,5.65406532,126.74,126.7,0.0548231]
[1766379217753,0.05036731,126.74,126.7,12.1808231]
[1766379217952,0.05036731,126.74,126.7,5.0748231]
[1766379219569,0.05036731,126.74,126.7,12.1808231]
[1766379221370,0.05036731,126.74,126.7,7.1608231]
[1766379222063,5.12036731,126.74,126.7,0.0548231]
[1766379233387,1.47369801,126.71,126.67,0.00181409]
[1766379233679,1.47369801,126.72,126.66,12.1279]
[1766379233878,1.47369801,126.72,126.64,22.1291]
[1766379234078,2.30477754,126.73,126.64,12.1291]
[1766379234282,2.30477754,126.73,126.64,5.02]
[1766379234583,2.30477754,126.73,126.63,110.5999]
[1766379234584,0.05197286,126.7,126.67,0.05132779]
[1766379240791,0.10197286,126.7,126.67,0.05132779]
[1766379242184,0.10197286,126.7,126.61,5.02]
[1766379242185,0.05,126.68,126.61,5.02]
[1766379242389,0.05,126.68,126.58,5.02]
[1766379242593,0.09,126.66,126.58,5.02]
[1766379243185,0.05434083,126.63,126.61,0.05163323]
[1766379243495,0.09434083,126.63,126.56,12.1338]
[1766379243986,0.09434083,126.63,126.54,157.2984]
[1766379243987,0.05434083,126.63,126.58,5.02]
[1766379244185,2.38477754,126.65,126.58,5.02]
[1766379244393,0.05275607,126.63,126.6,0.05412897]